bitfinex/quotes_BTCUSD_20240712
["timestamp","ask_amount","ask_price","bid_price","bid_amount"]
[1720812043860,0.07633336,58144.0,58143.0,0.171989]
[1720812044096,0.07633336,58144.0,58143.0,0.999547]
[1720812044341,0.10177782,58146.0,58145.0,0.51595]
[1720812044576,0.12722228,58148.0,58143.0,0.1396]
[1720812044577,0.10177782,58148.0,58147.0,0.515932]
[1720812044798,0.00306353,58158.0,58148.0,0.171973]
[1720812045017,0.00306353,58158.0,58149.0,0.00343907]
[1720812045018,0.1527589,58154.0,58149.0,0.00343907]
[1720812045247,0.00306353,58158.0,58150.0,0.3473761]
[1720812045480,0.00306353,58158.0,58151.0,0.1362]
[1720812045481,0.12730757,58153.0,58151.0,0.1362]
[1720812045691,0.10184729,58152.0,58151.0,0.99603]
[1720812045914,0.10184729,58153.0,58152.0,0.859815]
[1720812046382,0.06562667,58164.0,58160.0,0.0626]
[1720812046383,0.15274936,58164.0,58160.0,0.0626]
[1720812046585,0.06256314,58168.0,58160.0,0.0626]
[1720812046586,0.06256314,58162.0,58160.0,0.0626]
[1720812046807,0.04254429,58161.0,58160.0,0.0626]
[1720812047220,0.05316141,58161.0,58160.0,0.0626]
[1720812047907,0.052146,58161.0,58160.0,0.0626]
[1720812048132,0.04152777,58161.0,58160.0,0.0626]
[1720812048363,0.04152777,58162.0,58160.0,0.0626]
[1720812048582,0.052146,58161.0,58160.0,0.0676]
[1720812048805,0.05204073,58161.0,58160.0,0.0677]
[1720812049037,0.06256314,58162.0,58160.0,0.0677]
[1720812049247,0.05304073,58161.0,58160.0,0.0757]
[1720812049460,0.05304073,58161.0,58160.0,0.0627]
[1720812049672,0.05304073,58161.0,58160.0,0.0757]
[1720812049673,0.05404073,58161.0,58160.0,0.0757]
[1720812050102,0.05287073,58161.0,58160.0,0.0737]
[1720812050321,0.11543387,58161.0,58160.0,0.0857]
[1720812050553,0.63124287,58161.0,58160.0,0.0231]
[1720812050778,0.11543387,58161.0,58160.0,0.0121]
[1720812050992,0.28736987,58161.0,58160.0,0.0121]
[1720812051433,0.23532914,58161.0,58160.0,0.0121]
[1720812051661,0.28773252,58161.0,58160.0,0.0001]
[1720812051863,0.11986005,58161.0,58160.0,0.0131]
[1720812052088,0.11986005,58161.0,58160.0,0.0251]
[1720812052089,1.06314205,58161.0,58160.0,0.0251]
[1720812052317,1.40395152,58161.0,58160.0,0.0251]
[1720812053230,1.40195152,58161.0,58160.0,0.0001]
[1720812053462,1.40295152,58161.0,58160.0,0.0151]
[1720812053913,0.11679652,58161.0,58160.0,0.0151]
[1720812054157,0.28873252,58161.0,58160.0,0.0151]
[1720812054392,0.26907624,58161.0,58160.0,0.0151]
[1720812054845,0.26905374,58161.0,58160.0,0.0151]
[1720812055091,0.11678547,58161.0,58160.0,0.0151]
[1720812055395,0.24690579,58161.0,58160.0,0.0151]
[1720812055589,0.2688776,58161.0,58160.0,0.0151]
[1720812056517,0.63255241,58161.0,58160.0,0.0151]
[1720812056960,1.0409222,58161.0,58160.0,0.0151]
[1720812057450,1.4661952,58161.0,58160.0,0.0151]
[1720812057686,1.41384493,58161.0,58160.0,0.0151]
[1720812057901,1.46554412,58161.0,58160.0,0.0151]
[1720812058144,1.46554424,58161.0,58160.0,0.0151]
[1720812058587,1.40104745,58161.0,58160.0,0.0151]
[1720812059256,0.43996772,58161.0,58160.0,0.0151]
[1720812059488,0.28802845,58161.0,58160.0,0.0151]
[1720812059716,0.63496498,58161.0,58160.0,0.0151]
[1720812060157,0.78690425,58161.0,58160.0,0.0151]
[1720812060393,0.63190145,58161.0,58160.0,0.0151]
[1720812060595,0.22546531,58161.0,58160.0,0.0151]
[1720812060820,0.28802845,58161.0,58160.0,0.0151]
[1720812061052,0.28784482,58161.0,58160.0,0.0151]
[1720812061298,0.05334568,58161.0,58160.0,0.0151]
[1720812061530,0.05334568,58161.0,58160.0,0.1579]
[1720812061921,0.05334568,58161.0,58160.0,0.18719845]
[1720812062369,0.05334568,58161.0,58160.0,0.17140845]
[1720812062822,0.12934568,58161.0,58160.0,0.02860845]
[1720812063074,0.12934568,58161.0,58134.0,0.065]
[1720812063075,0.515968,58143.0,58134.0,0.065]
[1720812063359,0.515968,58143.0,58135.0,0.51068611]
[1720812063360,0.97402582,58143.0,58135.0,0.51068611]
[1720812063593,1.125811,58143.0,58134.0,0.065]
[1720812064076,1.12731118,58143.0,58134.0,0.065]
[1720812064330,0.97560495,58143.0,58134.0,0.065]
[1720812064564,0.05309481,58143.0,58134.0,0.065]
[1720812065030,0.20485182,58143.0,58142.0,1.1000913]
[1720812065257,0.20485182,58143.0,58142.0,1.0]
[1720812065498,0.05168314,58143.0,58142.0,1.0]
[1720812065742,0.05168314,58143.0,58142.0,1.002]
[1720812065974,0.01054978,58143.0,58142.0,1.1652913]
[1720812066203,0.01054978,58143.0,58142.0,1.2427913]
[1720812066204,0.06114121,58143.0,58142.0,1.2427913]
[1720812066435,0.06114121,58143.0,58142.0,1.7587683]
[1720812066436,0.01054978,58143.0,58142.0,1.7587683]
[1720812066711,0.01054978,58143.0,58142.0,2.4027533]
[1720812066951,0.12647163,58151.0,58142.0,2.4027533]
[1720812066952,0.01789353,58161.0,58148.0,0.343949]
[1720812067181,0.01483,58161.0,58151.0,0.170964]
[1720812067424,0.07584123,58153.0,58152.0,0.00343872]
[1720812067668,0.07584123,58153.0,58151.0,0.170964]
[1720812067669,0.11181417,58153.0,58151.0,0.17440294]
[1720812067911,0.01055919,58152.0,58151.0,0.27429864]
[1720812068165,0.01055919,58152.0,58151.0,0.27329864]
[1720812068640,0.01055919,58152.0,58151.0,0.17340294]
[1720812069362,0.11281417,58152.0,58151.0,0.17640294]
[1720812069616,0.11271417,58152.0,58151.0,0.172964]
[1720812069850,0.11371417,58152.0,58151.0,0.008]
[1720812070321,0.01245919,58152.0,58151.0,0.008]
[1720812070559,0.002,58152.0,58151.0,0.008]
[1720812071065,0.002,58152.0,58151.0,0.02234944]
[1720812071183,0.002,58152.0,58151.0,0.008]
[1720812071434,0.002,58152.0,58151.0,0.02234944]
[1720812071653,0.001,58152.0,58151.0,0.005]
[1720812071866,0.00506353,58152.0,58151.0,0.03034944]
[1720812072095,0.00406353,58152.0,58151.0,0.011]
[1720812072325,0.001,58152.0,58151.0,0.024]
[1720812072551,0.002,58152.0,58151.0,0.024]
[1720812073580,0.04284129,58152.0,58151.0,0.024]
[1720812073790,0.0428595,58152.0,58151.0,0.024]
[1720812074204,0.0428595,58152.0,58151.0,0.03834944]
[1720812074205,0.002,58152.0,58151.0,0.03834944]
[1720812074415,0.04284749,58152.0,58151.0,0.03834944]
[1720812075027,0.10541063,58152.0,58151.0,0.03834944]
[1720812075250,0.19501411,58152.0,58151.0,0.03834944]
[1720812075463,0.25757725,58152.0,58151.0,0.024]
[1720812075717,0.96512563,58152.0,58151.0,0.024]
[1720812075939,1.30905163,58152.0,58151.0,0.024]
[1720812076327,1.53010388,58152.0,58151.0,0.024]
[1720812076552,1.89867763,58152.0,58151.0,0.024]
[1720812076769,1.8984569,58152.0,58151.0,0.024]
[1720812077249,1.8976569,58152.0,58151.0,0.013]
[1720812077472,2.0678943,58152.0,58151.0,0.013]
[1720812077692,2.07106683,58152.0,58151.0,0.023]
[1720812077924,1.55690343,58152.0,58151.0,0.013]
[1720812078355,1.56290343,58152.0,58151.0,0.001]
[1720812078784,1.56290343,58152.0,58151.0,0.012]
[1720812078785,1.74646213,58152.0,58151.0,0.012]
[1720812079254,1.74546213,58152.0,58151.0,0.001]
[1720812079481,1.75246213,58152.0,58151.0,0.002]
[1720812079695,1.76304311,58152.0,58151.0,0.002]
[1720812080133,2.10696911,58152.0,58151.0,0.0021]
[1720812080579,2.16740156,58152.0,58151.0,0.0021]
[1720812081960,2.10740156,58152.0,58151.0,0.0021]
[1720812082375,2.10740156,58152.0,58151.0,0.003013]
[1720812082633,2.16823156,58152.0,58151.0,0.003013]
[1720812083185,2.81215756,58152.0,58151.0,0.003013]
[1720812083596,1.26648914,58143.0,58142.0,1.0]
[1720812083843,2.02203364,58143.0,58142.0,1.0169183]
[1720812084111,2.02203364,58143.0,58111.0,0.002]
[1720812084112,0.1,58112.0,58111.0,0.002]
[1720812084303,0.172131,58095.0,58094.0,0.01339199]
[1720812084551,0.03898534,58081.0,58074.0,0.01237726]
[1720812084780,0.01363957,58080.0,58075.0,0.00344343]
[1720812085022,0.01057604,58079.0,58076.0,0.0799]
[1720812085226,0.01353957,58078.0,58077.0,0.01799]
[1720812085446,0.00296353,58078.0,58077.0,0.00344312]
[1720812085648,0.03898534,58083.0,58077.0,0.00344312]
[1720812085858,0.02099573,58082.0,58076.0,0.07834312]
[1720812086261,0.00296353,58080.0,58077.0,0.00344324]
[1720812086502,0.00296353,58082.0,58077.0,0.00344324]
[1720812087240,0.00296353,58082.0,58076.0,0.07834312]
[1720812087459,0.00286353,58086.0,58076.0,0.07934312]
[1720812087680,0.00286353,58086.0,58077.0,0.06500701]
[1720812087924,0.00286353,58086.0,58077.0,0.23719101]
[1720812088152,0.00286353,58086.0,58077.0,0.06400701]
[1720812088400,0.00286353,58086.0,58077.0,0.23619201]
[1720812088626,0.00286353,58086.0,58077.0,0.233085]
[1720812088889,0.00819023,58086.0,58077.0,0.233085]
[1720812089104,0.21113534,58089.0,58077.0,0.31476738]
[1720812089336,0.008,58086.0,58080.0,0.40536266]
[1720812089578,0.008,58086.0,58085.0,0.172161]
[1720812089812,0.008,58086.0,58085.0,1.28616196]
[1720812090297,0.008,58086.0,58085.0,1.54281966]
[1720812090532,0.51068611,58105.0,58097.0,0.172124]
[1720812090745,0.51068611,58105.0,58093.0,0.06101466]
[1720812090989,0.03898534,58108.0,58098.0,0.17212]
[1720812091236,0.21097934,58108.0,58095.0,0.172129]
[1720812091458,0.21097934,58108.0,58097.0,0.172125]
[1720812091459,0.08511435,58106.0,58097.0,0.172125]
[1720812091929,0.42928235,58112.0,58103.0,0.172106]
[1720812091930,0.03888534,58112.0,58103.0,0.172106]
[1720812092149,0.08511435,58112.0,58099.0,0.0826]
[1720812092411,0.08511435,58112.0,58104.0,0.01549047]
[1720812092633,0.08511435,58112.0,58105.0,0.01592651]
[1720812093120,0.08511435,58112.0,58102.0,0.172109]
[1720812093334,0.08511435,58112.0,58106.0,0.0159193]
[1720812093581,0.06256314,58109.0,58099.0,0.0826]
[1720812093800,0.172093,58108.0,58107.0,0.01591208]
[1720812094022,0.172093,58108.0,58099.0,0.0826]
[1720812094242,0.23465314,58109.0,58099.0,0.0826]
[1720812094463,0.23465314,58109.0,58103.0,0.002]
[1720812094916,0.23465314,58109.0,58104.0,0.01593373]
[1720812095360,0.23465314,58109.0,58107.0,0.004]
[1720812095589,0.06,58108.0,58099.0,0.0826]
[1720812095817,0.23465314,58109.0,58100.0,0.00306353]
[1720812096034,0.23465314,58109.0,58103.0,0.003]
[1720812096306,0.23465314,58109.0,58100.0,0.0159626]
[1720812096548,0.03888534,58105.0,58104.0,0.01593373]
[1720812096763,0.03888534,58105.0,58091.0,0.232942]
[1720812096764,0.21099934,58101.0,58091.0,0.232942]
[1720812097240,0.21099934,58101.0,58092.0,0.01602036]
[1720812098163,0.21199934,58101.0,58092.0,0.01602036]
[1720812098388,0.03888534,58104.0,58096.0,0.172128]
[1720812098636,0.03888534,58104.0,58095.0,0.172129]
[1720812098867,0.03888534,58104.0,58092.0,0.01602036]
[1720812098868,0.001,58101.0,58098.0,0.00306353]
[1720812099085,0.001,58101.0,58097.0,0.00306353]
[1720812099353,0.001,58101.0,58100.0,0.51941453]
[1720812099568,0.001,58101.0,58100.0,0.516351]
[1720812099807,0.001,58101.0,58100.0,0.52979219]
[1720812100060,0.001,58101.0,58100.0,1.69905551]
[1720812100311,0.001,58101.0,58100.0,1.79905551]
[1720812100555,0.069,58113.0,58107.0,0.172095]
[1720812100792,0.03888534,58116.0,58107.0,0.172095]
[1720812101015,0.15334109,58116.0,58108.0,0.01378506]
[1720812101933,0.03888534,58116.0,58108.0,0.01378506]
[1720812102145,0.27351748,58116.0,58108.0,0.01378506]
[1720812102789,0.27351748,58116.0,58106.0,0.172098]
[1720812103011,0.27351748,58116.0,58109.0,0.01377784]
[1720812103223,0.03888534,58116.0,58110.0,0.01377063]
[1720812103433,0.03888534,58116.0,58107.0,0.172095]
[1720812103680,0.03888534,58116.0,58108.0,0.02078506]
[1720812103918,0.068993,58118.0,58108.0,0.02078506]
[1720812104176,0.28296314,58123.0,58112.0,0.17208]
[1720812104177,0.03888534,58122.0,58112.0,0.17208]
[1720812104598,0.03888534,58122.0,58113.0,0.01374898]
[1720812104814,0.03888534,58122.0,58114.0,0.087417]
[1720812105026,0.03888534,58122.0,58115.0,0.01158328]
[1720812105465,0.08511435,58117.0,58115.0,0.01158328]
[1720812105896,0.21095534,58116.0,58106.0,0.172098]
[1720812106163,0.172072,58115.0,58106.0,0.172098]
[1720812106407,0.21095534,58116.0,58107.0,0.01164101]
[1720812106643,0.49181449,58117.0,58107.0,0.01164101]
[1720812106644,0.03888534,58111.0,58107.0,0.01164101]
[1720812106899,0.00256314,58109.0,58101.0,0.172113]
[1720812107105,0.00256314,58109.0,58100.0,0.444228]
[1720812107106,0.06256314,58109.0,58100.0,0.1]
[1720812107319,0.06256314,58108.0,58102.0,0.0116771]
[1720812107571,0.03853179,58102.0,58101.0,0.01168432]
[1720812107861,0.21064779,58101.0,58095.0,0.0623]
[1720812108091,0.34419,58108.0,58095.0,0.0623]
[1720812108092,0.38272179,58108.0,58095.0,0.0623]
[1720812108322,0.03853179,58102.0,58100.0,0.014]
[1720812108548,0.21062679,58108.0,58097.0,0.344249]
[1720812108778,0.03843179,58106.0,58098.0,0.00306353]
[1720812109036,0.01713563,58105.0,58101.0,0.008]
[1720812109301,0.01713563,58105.0,58096.0,0.172127]
[1720812109538,0.01783701,58104.0,58097.0,0.17518753]
[1720812109984,0.03843179,58106.0,58097.0,0.172124]
[1720812110213,0.03843179,58106.0,58098.0,0.00306353]
[1720812110886,0.03843179,58106.0,58097.0,0.172124]
[1720812111109,0.06256314,58109.0,58099.0,0.172119]
[1720812111110,0.21052279,58109.0,58099.0,0.172119]
[1720812111348,0.492548,58115.0,58103.0,0.2]
[1720812111349,0.03833179,58114.0,58103.0,0.2]
[1720812111612,0.01239297,58117.0,58107.0,0.34419]
[1720812111833,0.03833179,58120.0,58114.0,0.172073]
[1720812112093,0.03833179,58121.0,58115.0,0.00344101]
[1720812112360,0.03833179,58123.0,58115.0,0.17551101]
[1720812112570,0.09500669,58123.0,58115.0,0.00344101]
[1720812112789,0.10732079,58123.0,58116.0,0.172069]
[1720812113015,0.03833179,58123.0,58117.0,0.00344089]
[1720812113497,0.03833179,58123.0,58116.0,0.172069]
[1720812114186,0.03833179,58123.0,58118.0,0.172062]
[1720812114440,0.03833179,58123.0,58119.0,0.00344081]
[1720812114669,0.03833179,58125.0,58119.0,0.00344081]
[1720812114927,0.06256314,58127.0,58119.0,0.00344081]
[1720812114928,0.03833179,58123.0,58119.0,0.00344081]
[1720812115428,0.03833179,58126.0,58119.0,0.17549881]
[1720812115664,0.03833179,58124.0,58119.0,0.17549881]
[1720812115913,0.03833179,58124.0,58119.0,0.18549881]
[1720812116130,0.03833179,58127.0,58122.0,0.172049]
[1720812116381,0.06256314,58127.0,58123.0,0.00344058]
[1720812116619,0.03833179,58129.0,58123.0,0.17548658]
[1720812116816,0.10089493,58129.0,58123.0,0.00344058]
[1720812117067,0.05729345,58128.0,58122.0,0.17205]
[1720812117279,0.10089493,58129.0,58122.0,0.17205]
[1720812117536,0.10089493,58129.0,58122.0,0.18445435]
[1720812117537,0.05755126,58128.0,58122.0,0.18445435]
[1720812117725,0.03833179,58129.0,58122.0,0.17205]
[1720812117940,0.05754626,58128.0,58122.0,0.17205]
[1720812118163,0.10089493,58129.0,58123.0,0.009]
[1720812118392,0.05773184,58128.0,58123.0,0.009]
[1720812118619,0.05773184,58127.0,58121.0,0.172054]
[1720812118853,0.08511435,58125.0,58122.0,0.11]
[1720812119087,0.08511435,58125.0,58081.0,0.51068611]
[1720812119088,0.03833179,58089.0,58081.0,0.51068611]
[1720812119354,0.03823179,58085.0,58081.0,0.51068611]
[1720812119585,0.03823179,58085.0,58075.0,0.0664]
[1720812119846,0.06256314,58087.0,58075.0,0.0664]
[1720812119847,0.06256314,58082.0,58075.0,0.0664]
[1720812120062,0.06256314,58082.0,58071.0,0.1816]
[1720812120063,0.02045428,58081.0,58071.0,0.1816]
[1720812120334,0.02045428,58081.0,58076.0,0.01078398]
[1720812120557,0.02045428,58081.0,58071.0,0.353802]
[1720812120826,0.02045428,58080.0,58071.0,0.42199902]
[1720812121038,0.02045428,58079.0,58072.0,0.01081288]
[1720812121263,0.02045428,58078.0,58072.0,0.01081288]
[1720812121479,0.02045428,58077.0,58072.0,0.01081288]
[1720812121701,0.02045428,58076.0,58072.0,0.01081288]
[1720812121942,0.02045428,58076.0,58073.0,0.08371961]
[1720812122164,0.21039179,58086.0,58072.0,0.01081288]
[1720812122391,0.02111407,58085.0,58074.0,0.01079843]
[1720812122611,0.02101407,58085.0,58073.0,0.01080566]
[1720812123100,0.001,58079.0,58073.0,0.01080566]
[1720812124484,0.03823179,58074.0,58073.0,0.01080566]
[1720812124707,0.98431614,58074.0,58073.0,0.01080566]
[1720812124971,0.21042879,58073.0,58072.0,0.003]
[1720812125227,0.06256314,58075.0,58062.0,0.02014025]
[1720812125228,0.03823179,58075.0,58062.0,0.02014025]
[1720812125441,0.172194,58074.0,58073.0,0.01]
[1720812125729,0.516582,58074.0,58073.0,0.01]
[1720812126205,0.03823179,58067.0,58062.0,0.02014025]
[1720812126418,0.38264279,58071.0,58062.0,0.02014025]
[1720812126646,0.03823179,58071.0,58063.0,0.01432189]
[1720812126863,0.172112,58068.0,58063.0,0.01087793]
[1720812127100,0.20935757,58064.0,58063.0,0.01087793]
[1720812127319,0.55491079,58063.0,58062.0,0.02872025]
[1720812127772,0.172226,58063.0,58062.0,0.02872025]
[1720812127999,0.55491079,58063.0,58062.0,0.02872025]
[1720812128233,0.89936379,58063.0,58062.0,0.02872025]
[1720812128949,0.21045779,58063.0,58062.0,0.02872025]
[1720812129198,0.55591079,58063.0,58062.0,0.03572025]
[1720812129669,0.89936379,58063.0,58062.0,0.02872025]
[1720812129920,0.96192693,58063.0,58062.0,0.02872025]
[1720812130398,0.55481079,58063.0,58062.0,0.02872025]
[1720812130640,0.89926379,58063.0,58062.0,0.02872025]
[1720812130874,0.89926379,58063.0,58062.0,0.04172025]
[1720812130875,0.517579,58063.0,58062.0,0.04172025]
[1720812131095,0.89926379,58063.0,58062.0,0.02872025]
[1720812131322,0.96182693,58063.0,58062.0,0.02872025]
[1720812131546,0.96272693,58063.0,58062.0,0.03572025]
[1720812131802,1.30717993,58063.0,58062.0,0.03572025]
[1720812132090,0.69491079,58063.0,58062.0,0.03572025]
[1720812132305,0.173226,58063.0,58062.0,0.03572025]
[1720812132560,0.517679,58063.0,58062.0,0.03572025]
[1720812132794,1.57731472,58063.0,58062.0,0.03572025]
[1720812133008,1.44657993,58063.0,58062.0,0.03572025]
[1720812134140,1.46856837,58063.0,58062.0,0.03572025]
[1720812134334,1.44557993,58063.0,58062.0,0.02872025]
[1720812134584,1.46776872,58063.0,58062.0,0.03072025]
[1720812134803,1.81212172,58063.0,58062.0,0.03072025]
[1720812135037,1.44547993,58063.0,58062.0,0.03072025]
[1720812135302,1.44547993,58063.0,58052.0,0.009119]
[1720812135303,0.03823179,58055.0,58052.0,0.009119]
[1720812135536,0.03823179,58055.0,58041.0,0.0080448]
[1720812135537,0.55509879,58042.0,58041.0,0.0080448]
[1720812135824,0.13789667,58054.0,58041.0,0.1803358]
[1720812135825,0.03823179,58045.0,58041.0,0.1803358]
[1720812136043,0.07558949,58063.0,58041.0,0.1803358]
[1720812136044,0.03823179,58058.0,58043.0,0.344569]
[1720812136272,0.03823179,58058.0,58042.0,0.06521316]
[1720812136273,0.172246,58057.0,58042.0,0.07113364]
[1720812136485,0.172246,58057.0,58041.0,0.0080448]
[1720812136486,0.21052079,58042.0,58041.0,0.0080448]
[1720812136947,0.55509879,58042.0,58041.0,0.0080448]
[1720812137400,0.22352079,58042.0,58041.0,0.0090448]
[1720812137670,0.013,58042.0,58041.0,0.0090448]
[1720812137877,0.03823179,58049.0,58045.0,0.00296353]
[1720812138126,0.03823179,58049.0,58042.0,0.344578]
[1720812138127,0.03813179,58054.0,58042.0,0.00296353]
[1720812138336,0.03803179,58054.0,58045.0,0.172279]
[1720812138625,0.03803179,58054.0,58045.0,0.36898473]
[1720812138853,0.03803179,58054.0,58041.0,0.0690448]
[1720812138854,0.03803179,58054.0,58042.0,0.00296353]
[1720812139079,0.03803179,58054.0,58046.0,0.172276]
[1720812139303,0.03803179,58056.0,58047.0,0.00296353]
[1720812139552,0.03803179,58056.0,58048.0,0.20702155]
[1720812139787,0.03803179,58056.0,58049.0,0.00296353]
[1720812140016,0.03803179,58056.0,58049.0,0.17523053]
[1720812140240,0.10709579,58056.0,58049.0,0.17423053]
[1720812140454,0.10709579,58056.0,58049.0,0.21610878]
[1720812140668,0.10709579,58056.0,58051.0,0.0001]
[1720812140881,0.11109579,58056.0,58051.0,0.0001]
[1720812141095,0.10709579,58056.0,58051.0,0.0001]
[1720812141351,0.00306353,58058.0,58051.0,0.00354484]
[1720812141587,0.004,58056.0,58051.0,0.04766551]
[1720812141832,0.00306353,58055.0,58051.0,0.04766551]
[1720812142077,0.00306353,58055.0,58051.0,0.0001]
[1720812142308,0.03803179,58053.0,58051.0,0.0001]
[1720812142527,0.27288393,58042.0,58041.0,0.0080448]
[1720812142748,0.18293179,58042.0,58041.0,0.0080448]
[1720812143009,0.03803179,58045.0,58041.0,0.0080448]
[1720812143215,0.03803179,58044.0,58041.0,0.0080448]
[1720812143741,0.21031579,58044.0,58041.0,0.0080448]
[1720812143978,0.03803179,58044.0,58041.0,0.0080448]
[1720812144427,0.03803179,58042.0,58041.0,0.0090448]
[1720812144662,0.03803179,58042.0,58041.0,0.0080448]
[1720812145127,0.03803179,58042.0,58041.0,0.0120448]
[1720812145376,0.03803179,58042.0,58041.0,0.0080448]
[1720812145599,0.96203993,58042.0,58041.0,0.0080448]
[1720812145830,1.30661793,58042.0,58041.0,0.0080448]
[1720812146048,1.30661793,58042.0,58041.0,0.0089578]
[1720812146554,1.52545878,58042.0,58041.0,0.0089578]
[1720812146796,2.04017418,58042.0,58041.0,0.0089578]
[1720812147032,1.87393678,58042.0,58041.0,0.0089578]
[1720812147247,1.86993678,58042.0,58041.0,0.0089578]
[1720812147482,2.29874133,58042.0,58041.0,0.0089578]
[1720812147740,2.14033783,58042.0,58041.0,0.0089578]
[1720812147979,1.69175983,58042.0,58041.0,0.0089578]
[1720812148191,1.69368206,58042.0,58041.0,0.0089578]
[1720812148410,1.8599182,58042.0,58041.0,0.0089578]
[1720812148852,1.8689182,58042.0,58041.0,0.0099578]
[1720812149306,2.37029468,58042.0,58041.0,0.0099578]
[1720812149534,2.37237245,58042.0,58041.0,0.0099578]
[1720812149768,2.57237245,58042.0,58041.0,0.0099578]
[1720812150232,2.57227245,58042.0,58041.0,0.0099578]
[1720812150454,2.37227245,58042.0,58041.0,0.0099578]
[1720812151134,2.22440742,58042.0,58041.0,0.0099578]
[1720812151362,2.22430742,58042.0,58041.0,0.0099578]
[1720812151624,2.2233064,58042.0,58041.0,0.0099578]
[1720812152286,2.2833064,58042.0,58041.0,0.0099578]
[1720812152811,2.2832064,58042.0,58041.0,0.0099578]
[1720812153023,2.2831064,58042.0,58041.0,0.0099578]
[1720812153476,2.2831064,58042.0,58011.0,0.002]
[1720812153477,0.03793179,58012.0,58011.0,0.002]
[1720812153918,0.03793179,58012.0,58011.0,0.01403555]
[1720812154164,0.06216314,58020.0,58011.0,0.01403555]
[1720812154165,0.03793179,58013.0,58011.0,0.002]
[1720812154384,0.00306353,58012.0,58011.0,0.01203555]
[1720812154602,0.00306353,58012.0,58009.0,0.2197496]
[1720812154845,0.00406353,58012.0,58011.0,0.01203555]
[1720812155067,0.00306353,58012.0,58010.0,0.01204641]
[1720812155310,0.38575132,58012.0,58011.0,0.01203555]
[1720812155539,0.03793179,58012.0,58011.0,0.01203555]
[1720812155764,0.03793179,58010.0,58009.0,0.04391625]
[1720812155991,0.001,58013.0,58011.0,0.01203555]
[1720812156213,0.0009,58013.0,58011.0,0.00344735]
[1720812156443,0.0009,58013.0,58012.0,0.01202469]
[1720812156670,0.03793179,58014.0,58012.0,0.18440269]
[1720812156895,0.03793179,58014.0,58012.0,0.01202469]
[1720812157114,0.00306353,58013.0,58012.0,0.01102469]
[1720812157575,0.10689532,58013.0,58012.0,0.01102469]
[1720812157790,0.03893179,58013.0,58012.0,0.01102469]
[1720812158033,0.03793179,58011.0,58009.0,0.04391625]
[1720812158285,0.04099532,58010.0,58009.0,0.04391625]
[1720812158520,0.10315846,58010.0,58009.0,0.04391625]
[1720812158749,0.10009493,58010.0,58009.0,0.04391625]
[1720812159664,0.96191493,58010.0,58009.0,0.04391625]
[1720812159879,0.1424455,58010.0,58009.0,0.04391625]
[1720812160101,0.09999493,58010.0,58009.0,0.04391625]
[1720812160328,0.03783179,58010.0,58009.0,0.21630325]
[1720812160591,0.001,58010.0,58009.0,0.64077725]
[1720812160812,0.001,58010.0,58009.0,1.39482525]
[1720812161285,0.001,58010.0,58009.0,1.59482525]
[1720812161731,0.001,58010.0,58009.0,2.10176746]
[1720812161967,0.29776914,58037.0,58018.0,0.2]
[1720812161968,0.03783179,58032.0,58018.0,0.2]
[1720812162178,0.03783179,58033.0,58032.0,0.344637]
[1720812162398,0.03783179,58033.0,58032.0,0.0786]
[1720812162629,0.03783179,58036.0,58034.0,0.516935]
[1720812162852,0.03783179,58037.0,58035.0,0.172308]
[1720812163118,0.03783179,58037.0,58036.0,0.172305]
[1720812163368,0.03783179,58047.0,58036.0,0.2]
[1720812163611,0.0612,58052.0,58043.0,0.172284]
[1720812163612,0.03783179,58046.0,58043.0,0.172284]
[1720812163847,0.03783179,58046.0,58041.0,0.0001]
[1720812164067,0.03783179,58046.0,58043.0,0.172284]
[1720812164315,0.03783179,58049.0,58043.0,0.34457]
[1720812164570,0.03783179,58049.0,58045.0,0.344557]
[1720812164813,0.06216314,58055.0,58047.0,0.172272]
[1720812164814,0.03783179,58050.0,58047.0,0.172272]
[1720812165264,0.03783179,58053.0,58048.0,0.00887574]
[1720812165491,0.03783179,58053.0,58049.0,0.06504498]
[1720812165758,0.03783179,58053.0,58050.0,0.172264]
[1720812165985,0.03783179,58053.0,58052.0,0.172259]
[1720812166226,0.10689379,58058.0,58052.0,0.172258]
[1720812166458,0.00083,58060.0,58059.0,0.172238]
[1720812166684,0.00083,58060.0,58052.0,0.00884682]
[1720812166879,0.00083,58060.0,58059.0,0.00879621]
[1720812167322,0.00083,58060.0,58059.0,0.00779621]
[1720812167755,0.00083,58060.0,58059.0,0.00979621]
[1720812168020,0.00183,58060.0,58059.0,0.00979621]
[1720812169348,0.00183,58060.0,58059.0,0.00989621]
[1720812169824,0.10182493,58060.0,58059.0,0.00989621]
[1720812170045,0.27405993,58060.0,58059.0,0.00989621]
[1720812170267,1.31125387,58060.0,58059.0,0.00989621]
[1720812170525,1.31125387,58060.0,58059.0,0.0021]
[1720812170714,0.96678287,58060.0,58059.0,0.0021]
[1720812170937,0.27784087,58060.0,58059.0,0.0021]
[1720812171356,0.62231187,58060.0,58059.0,0.0021]
[1720812171794,0.96678287,58060.0,58059.0,0.0021]
[1720812172231,0.96578287,58060.0,58059.0,0.0001]
[1720812172657,0.98822812,58060.0,58059.0,0.0001]
[1720812172871,1.51182878,58060.0,58059.0,0.0001]
[1720812173119,1.59520123,58060.0,58059.0,0.0001]
[1720812173373,1.53520123,58060.0,58059.0,0.0001]
[1720812173589,1.53520123,58060.0,58035.0,0.172308]
[1720812173590,0.03783179,58043.0,58035.0,0.172308]
[1720812174044,0.03783179,58043.0,58036.0,0.00879588]
[1720812174261,0.03783179,58038.0,58036.0,0.00879588]
[1720812174489,0.09999493,58037.0,58036.0,0.00879588]
[1720812174709,0.06216314,58034.0,58027.0,0.0752]
[1720812174932,0.03783179,58033.0,58027.0,0.0752]
[1720812175380,0.03783179,58033.0,58028.0,0.00885376]
[1720812175822,0.03783179,58033.0,58028.0,0.18118276]
[1720812176050,0.02605496,58038.0,58035.0,0.172309]
[1720812176270,0.02605496,58038.0,58032.0,0.344635]
[1720812176496,0.1444,58049.0,58036.0,0.00879588]
[1720812176497,0.02605496,58041.0,58036.0,0.00879588]
[1720812176720,0.02370646,58040.0,58037.0,0.00344564]
[1720812176994,0.02605496,58041.0,58037.0,0.06427124]
[1720812177235,0.02605496,58041.0,58037.0,0.00878864]
[1720812177460,0.02419168,58040.0,58037.0,0.00878864]
[1720812177677,0.02419168,58040.0,58037.0,0.00344567]
[1720812177896,0.02419168,58040.0,58038.0,0.00878141]
[1720812178111,0.02409168,58040.0,58038.0,0.00878141]
[1720812178567,0.02409168,58040.0,58039.0,0.172297]